bitfinex/quotes_BTCUSD_20240723
["timestamp","ask_amount","ask_price","bid_price","bid_amount"]
[1721721417552,1.193645,66660.0,66659.0,0.308934]
[1721721417957,1.194485,66660.0,66659.0,0.308934]
[1721721418495,1.281885,66660.0,66659.0,0.308934]
[1721721418807,1.219985,66660.0,66659.0,0.308934]
[1721721419581,1.132585,66660.0,66659.0,0.308934]
[1721721419967,0.751755,66660.0,66659.0,0.308934]
[1721721420139,0.751755,66660.0,66659.0,0.304934]
[1721721420370,0.450725,66660.0,66659.0,0.30832634]
[1721721420523,0.449725,66660.0,66659.0,0.31332634]
[1721721420933,0.450725,66660.0,66659.0,0.31332634]
[1721721421456,0.450725,66660.0,66659.0,0.30832634]
[1721721422269,0.750755,66660.0,66659.0,0.30832634]
[1721721422878,0.749755,66660.0,66659.0,0.32132634]
[1721721423220,0.449725,66660.0,66659.0,0.32632634]
[1721721423463,0.749755,66660.0,66659.0,0.31332634]
[1721721423842,0.749755,66660.0,66659.0,0.32732634]
[1721721424473,0.749755,66660.0,66659.0,0.30832634]
[1721721424872,0.749755,66660.0,66659.0,0.32532634]
[1721721426203,0.749755,66660.0,66659.0,0.31232634]
[1721721426809,0.749755,66660.0,66659.0,0.30832634]
[1721721427014,0.749755,66660.0,66659.0,0.31332634]
[1721721427212,0.750755,66660.0,66659.0,0.31332634]
[1721721427643,0.750755,66660.0,66659.0,0.30832634]
[1721721427942,0.750755,66660.0,66659.0,0.32532634]
[1721721429161,0.749755,66660.0,66659.0,0.32132634]
[1721721429489,0.749755,66660.0,66659.0,0.31132634]
[1721721429705,0.749755,66660.0,66659.0,0.32332634]
[1721721429903,0.749755,66660.0,66659.0,0.32032634]
[1721721430407,0.749755,66660.0,66659.0,0.31232634]
[1721721430638,0.749755,66660.0,66659.0,0.30832634]
[1721721430814,0.749755,66660.0,66659.0,0.31132634]
[1721721431120,0.749755,66660.0,66659.0,0.32432634]
[1721721432336,0.749755,66660.0,66659.0,0.32132634]
[1721721432766,0.749755,66660.0,66659.0,0.32532634]
[1721721436153,1.049785,66660.0,66659.0,0.32532634]
[1721721436585,0.748755,66660.0,66659.0,0.32532634]
[1721721438652,1.048785,66660.0,66659.0,0.32532634]
[1721721439340,0.748755,66660.0,66659.0,0.32532634]
[1721721440254,1.048785,66660.0,66659.0,0.32532634]
[1721721441177,0.748755,66660.0,66659.0,0.32532634]
[1721721441673,1.048785,66660.0,66659.0,0.32532634]
[1721721441913,0.748755,66660.0,66659.0,0.32532634]
[1721721449857,0.82878005,66660.0,66659.0,0.32532634]
[1721721452356,0.8288617,66660.0,66659.0,0.32532634]
[1721721455625,0.8288629,66660.0,66659.0,0.32532634]
[1721721455956,1.1288929,66660.0,66659.0,0.32532634]
[1721721456165,0.98088568,66660.0,66659.0,0.32532634]
[1721721456364,1.1288929,66660.0,66659.0,0.321934]
[1721721456588,1.1288929,66660.0,66659.0,0.32518408]
[1721721456791,0.8288629,66660.0,66659.0,0.32518408]
[1721721458222,1.1288929,66660.0,66659.0,0.32518408]
[1721721458684,1.12863813,66660.0,66659.0,0.32518408]
[1721721459266,1.12864292,66660.0,66659.0,0.32518408]
[1721721459676,0.82861292,66660.0,66659.0,0.32518408]
[1721721460027,0.98064884,66660.0,66659.0,0.32518408]
[1721721460431,0.82861292,66660.0,66659.0,0.32518408]
[1721721464493,0.98065585,66660.0,66659.0,0.32518408]
[1721721467895,0.97650515,66660.0,66659.0,0.32518408]
[1721721468728,0.97659878,66660.0,66659.0,0.32518408]
[1721721471190,0.97658172,66660.0,66659.0,0.32518408]
[1721721471796,0.97658353,66660.0,66659.0,0.32518408]
[1721721472758,0.67655353,66660.0,66659.0,0.32518408]
[1721721474193,0.60083761,66660.0,66659.0,0.32518408]
[1721721474389,0.67655499,66660.0,66659.0,0.32518408]
[1721721475793,0.97658499,66660.0,66659.0,0.32518408]
[1721721476220,0.67655499,66660.0,66659.0,0.32518408]
[1721721476986,0.37652499,66660.0,66659.0,0.32518408]
[1721721477154,0.07655738,66660.0,66659.0,0.46558408]
[1721721477539,0.07652284,66660.0,66659.0,0.46558408]
[1721721477978,0.00084,66660.0,66659.0,0.46558408]
[1721721478780,0.13602228,66660.0,66659.0,0.46558408]
[1721721482176,0.00084,66660.0,66659.0,0.46558408]
[1721721483667,0.52612351,66660.0,66659.0,0.38988408]
[1721721484301,0.52612351,66660.0,66659.0,0.32518408]
[1721721484302,1.12618351,66660.0,66659.0,0.32518408]
[1721721484708,0.82615351,66660.0,66659.0,0.32518408]
[1721721485997,0.82518366,66660.0,66659.0,0.32518408]
[1721721489011,0.82191453,66660.0,66659.0,0.32518408]
[1721721492386,0.82194169,66660.0,66659.0,0.32518408]
[1721721492854,0.82194169,66660.0,66659.0,0.38788408]
[1721721495076,0.750915,66660.0,66659.0,0.38788408]
[1721721495279,0.82189684,66660.0,66659.0,0.38788408]
[1721721497071,0.07182184,66660.0,66659.0,0.38788408]
[1721721497300,0.22210772,66660.0,66659.0,0.46578408]
[1721721497555,0.150855,66660.0,66659.0,0.46578408]
[1721721497783,0.28598583,66660.0,66659.0,0.46578408]
[1721721498270,0.28598349,66660.0,66659.0,0.46578408]
[1721721498729,0.150855,66660.0,66659.0,0.46578408]
[1721721498962,0.28598349,66660.0,66659.0,0.46578408]
[1721721499189,0.28598349,66660.0,66659.0,0.38788408]
[1721721499414,0.58601349,66660.0,66659.0,0.38788408]
[1721721500340,0.450885,66660.0,66659.0,0.38788408]
[1721721500584,0.52188142,66660.0,66659.0,0.38788408]
[1721721501349,0.52202979,66660.0,66659.0,0.38788408]
[1721721502485,0.450885,66660.0,66659.0,0.38788408]
[1721721503415,0.58600596,66660.0,66659.0,0.38788408]
[1721721503639,0.28597582,66660.0,66659.0,0.38788408]
[1721721503847,0.150855,66660.0,66659.0,0.38788408]
[1721721504280,0.450885,66660.0,66659.0,0.38788408]
[1721721505379,0.58600128,66660.0,66659.0,0.38788408]
[1721721507522,0.450885,66660.0,66659.0,0.38788408]
[1721721507675,0.58600184,66660.0,66659.0,0.38788408]
[1721721508083,0.58600136,66660.0,66659.0,0.38788408]
[1721721510339,0.00084,66660.0,66659.0,1.06055499]
[1721721510556,0.11342894,66660.0,66659.0,0.76052099]
[1721721510759,0.00084,66660.0,66659.0,0.76052099]
[1721721510976,0.11342311,66660.0,66659.0,0.76052099]
[1721721511180,0.00084,66660.0,66659.0,0.74752099]
[1721721511384,0.00084,66660.0,66659.0,1.04755499]
[1721721511536,0.11342311,66660.0,66659.0,0.74752099]
[1721721511746,0.00084,66660.0,66659.0,0.74752099]
[1721721511943,0.00084,66660.0,66659.0,0.74352099]
[1721721512390,0.00084,66660.0,66659.0,0.74752099]
[1721721512746,0.00084,66660.0,66659.0,0.75652099]
[1721721512956,0.11339737,66660.0,66659.0,0.77052099]
[1721721513250,0.11339737,66660.0,66659.0,0.75752099]
[1721721513450,0.00084,66660.0,66659.0,0.77152099]
[1721721513864,0.1133858,66660.0,66659.0,0.75752099]
[1721721514067,0.1133858,66660.0,66659.0,0.74352099]
[1721721514275,0.1133858,66660.0,66659.0,0.75752099]
[1721721515721,0.1133858,66660.0,66659.0,0.77152099]
[1721721519322,0.00084,66660.0,66659.0,0.77152099]
[1721721519457,0.1083665,66661.0,66659.0,0.77152099]
[1721721519677,0.1083665,66661.0,66660.0,0.21551391]
[1721721519871,0.1083665,66661.0,66660.0,0.51656991]
[1721721520097,0.150003,66665.0,66661.0,0.0657]
[1721721520338,0.150003,66665.0,66659.0,0.26964968]
[1721721520339,0.150003,66665.0,66663.0,0.0657]
[1721721520579,0.150003,66665.0,66664.0,0.30383]
[1721721520805,0.150003,66665.0,66664.0,0.3070502]
[1721721521223,0.13501922,66667.0,66664.0,0.3070502]
[1721721521451,0.150003,66666.0,66664.0,0.3070502]
[1721721522249,0.28502222,66666.0,66664.0,0.3070502]
[1721721522479,0.28502222,66666.0,66665.0,0.0753]
[1721721522694,0.28502222,66666.0,66665.0,0.1367]
[1721721522910,0.28502222,66666.0,66665.0,0.4437498]
[1721721523660,0.28502222,66666.0,66665.0,0.4527498]
[1721721525368,0.28502222,66666.0,66665.0,0.4667498]
[1721721526235,0.28501824,66666.0,66665.0,0.4667498]
[1721721526632,0.28501824,66666.0,66665.0,0.3914498]
[1721721526832,0.66682124,66666.0,66665.0,0.3300498]
[1721721527032,0.96682424,66666.0,66665.0,0.3300498]
[1721721528008,1.20002822,66666.0,66665.0,0.3300498]
[1721721528412,1.20002822,66666.0,66665.0,0.32683]
[1721721528799,1.20002822,66666.0,66665.0,0.33004444]
[1721721528995,1.20038985,66666.0,66665.0,0.33004444]
[1721721532567,1.20071502,66666.0,66665.0,0.33004444]
[1721721532804,0.81891202,66666.0,66665.0,0.33004444]
[1721721533007,0.750009,66666.0,66665.0,0.33004444]
[1721721533158,0.81893327,66666.0,66665.0,0.33004444]
[1721721534486,0.51893027,66666.0,66665.0,0.33004444]
[1721721534698,0.21892727,66666.0,66665.0,0.40704444]
[1721721534898,0.06892427,66666.0,66665.0,0.53045018]
[1721721535056,0.06892427,66666.0,66665.0,0.46925018]
[1721721535254,0.13503464,66666.0,66665.0,0.40704444]
[1721721535681,0.299983,66671.0,66666.0,0.0606]
[1721721536011,0.149998,66668.0,66666.0,0.0606]
[1721721536219,0.449992,66668.0,66667.0,0.0032141]
[1721721536371,0.51994711,66668.0,66667.0,0.0032141]
[1721721537177,0.21995311,66668.0,66667.0,0.0032141]
[1721721537393,0.21995311,66668.0,66667.0,0.0112141]
[1721721538071,0.06995511,66668.0,66667.0,0.0112141]
[1721721538279,0.28503088,66670.0,66667.0,0.3778341]
[1721721538488,0.13503788,66668.0,66667.0,0.3918341]
[1721721538679,0.149997,66668.0,66667.0,0.3918341]
[1721721539395,0.21705925,66668.0,66667.0,0.3838341]
[1721721539543,0.21705925,66668.0,66667.0,0.3918341]
[1721721539759,0.60015325,66668.0,66667.0,0.3150341]
[1721721540132,0.51705325,66668.0,66667.0,0.3290341]
[1721721540544,0.51705325,66668.0,66667.0,0.3150341]
[1721721540763,0.51705325,66668.0,66667.0,0.3070341]
[1721721541007,0.51705325,66668.0,66667.0,0.3210341]
[1721721541208,0.81707024,66668.0,66667.0,0.3310341]
[1721721541423,0.81707024,66668.0,66667.0,0.3170341]
[1721721541726,0.81707024,66668.0,66667.0,0.3310341]
[1721721542707,0.51707624,66668.0,66667.0,0.3210341]
[1721721542908,0.51707624,66668.0,66667.0,0.3290341]
[1721721543136,0.06708524,66668.0,66667.0,0.4679341]
[1721721543339,0.299982,66671.0,66667.0,0.4679341]
[1721721543556,0.06707067,66670.0,66668.0,0.04679341]
[1721721543696,0.06707067,66669.0,66668.0,0.0609]
[1721721543914,0.22347742,66672.0,66668.0,0.0609]
[1721721544080,0.06740368,66671.0,66668.0,0.0609]
[1721721544495,0.06740349,66670.0,66668.0,0.0609]
[1721721544694,0.06740349,66669.0,66668.0,0.0609]
[1721721545082,0.149991,66671.0,66668.0,0.0609]
[1721721545283,0.149991,66671.0,66669.0,0.002794]
[1721721545694,0.149992,66670.0,66669.0,0.002794]
[1721721545849,0.449983,66669.0,66668.0,0.0609]
[1721721546048,0.1656,66671.0,66664.0,0.0656]
[1721721546049,0.45001,66665.0,66664.0,0.0656]
[1721721547256,0.65857657,66665.0,66664.0,0.0656]
[1721721547456,0.65857657,66665.0,66664.0,0.0766]
[1721721547677,0.65857657,66665.0,66664.0,0.0906]
[1721721549200,0.28508015,66665.0,66664.0,0.0906]
[1721721549400,0.28508015,66665.0,66664.0,0.1695]
[1721721549875,0.28508015,66665.0,66664.0,0.172701]
[1721721550364,0.28510843,66665.0,66664.0,0.172701]
[1721721553123,0.58511543,66665.0,66664.0,0.093801]
[1721721553330,0.58512808,66665.0,66664.0,0.093801]
[1721721554818,0.89154874,66665.0,66664.0,0.025]
[1721721555201,1.19155574,66665.0,66664.0,0.025]
[1721721556863,0.51457307,66665.0,66664.0,0.025]
[1721721557056,0.06456307,66665.0,66664.0,0.1672]
[1721721557213,0.21456607,66665.0,66664.0,0.1672]
[1721721557416,0.58806249,66665.0,66664.0,0.17041593]
[1721721557962,0.150003,66666.0,66664.0,0.18765832]
[1721721558154,0.45202045,66669.0,66666.0,0.0659]
[1721721558345,0.149999,66667.0,66666.0,0.0659]
[1721721558522,0.06521438,66667.0,66666.0,0.0659]
[1721721558740,0.22551787,66672.0,66667.0,0.148]
[1721721558942,0.06504863,66671.0,66668.0,0.068694]
[1721721559141,0.06504863,66671.0,66669.0,0.37191499]
[1721721559408,0.00084,66674.0,66671.0,0.066]
[1721721559608,0.135935,66674.0,66671.0,0.066]
[1721721559825,0.00084,66674.0,66671.0,0.066]
[1721721560030,0.135935,66674.0,66671.0,0.066]
[1721721560242,0.07348942,66672.0,66671.0,0.066]
[1721721560442,0.22347742,66672.0,66671.0,0.066]
[1721721562361,0.22347742,66672.0,66671.0,0.073]
[1721721562616,0.149997,66668.0,66667.0,0.012]
[1721721562789,0.449991,66668.0,66667.0,0.012]
[1721721562990,0.45001,66665.0,66664.0,0.0634]
[1721721563206,0.52349942,66665.0,66664.0,0.0634]
[1721721564210,0.52349942,66665.0,66664.0,0.0774]
[1721721564418,0.52331887,66665.0,66664.0,0.0774]
[1721721565090,0.52331887,66665.0,66664.0,0.09460545]
[1721721566213,0.22331187,66665.0,66664.0,0.09460545]
[1721721568083,0.07348942,66665.0,66664.0,0.09460545]
[1721721568381,0.22349242,66665.0,66664.0,0.09460545]
[1721721570203,0.22349242,66665.0,66664.0,0.09459161]
[1721721570953,0.52349942,66665.0,66664.0,0.09459161]
[1721721571625,0.22349242,66665.0,66664.0,0.0914]
[1721721572015,0.22349242,66665.0,66664.0,0.09458812]
[1721721574322,0.28502713,66670.0,66666.0,0.0656]
[1721721574574,0.28502713,66670.0,66668.0,0.0648]
[1721721574778,0.2850253,66670.0,66669.0,0.002794]
[1721721575123,0.1350323,66670.0,66669.0,0.00597961]
[1721721575349,0.149991,66671.0,66669.0,0.11248979]
[1721721575556,0.150824,66674.0,66670.0,0.144894]
[1721721575760,0.150824,66674.0,66671.0,0.01543509]
[1721721575761,0.149986,66673.0,66671.0,0.01543509]
[1721721575970,0.22347742,66672.0,66671.0,0.01861991]
[1721721576684,0.07348942,66672.0,66671.0,0.01861991]
[1721721577932,0.07348942,66672.0,66671.0,0.02761991]
[1721721578743,0.07348942,66672.0,66671.0,0.01218482]
[1721721578941,0.07348942,66672.0,66671.0,0.02618482]
[1721721580352,0.00084,66674.0,66672.0,0.0654]
[1721721580729,0.00084,66674.0,66673.0,0.00318404]
[1721721582740,0.00084,66674.0,66673.0,0.01718404]
[1721721582997,0.00084,66674.0,66673.0,0.08361156]
[1721721583218,0.00084,66674.0,66673.0,0.52711647]
[1721721583425,0.00084,66674.0,66673.0,0.83408747]
[1721721583552,0.11332608,66674.0,66673.0,0.83408747]
[1721721584212,0.11332608,66674.0,66673.0,0.82708747]
[1721721584413,0.00084,66674.0,66673.0,0.76065995]
[1721721585093,0.00084,66674.0,66673.0,0.77465995]
[1721721585300,0.00084,66674.0,66673.0,0.76065995]
[1721721585729,0.00084,66674.0,66673.0,0.77465995]
[1721721586087,0.07432942,66674.0,66673.0,0.77465995]
[1721721586347,0.16428675,66674.0,66673.0,0.77465995]
[1721721586545,0.16428675,66674.0,66673.0,0.76065995]
[1721721586863,0.16428675,66674.0,66673.0,0.77465995]
[1721721587259,0.16428675,66674.0,66673.0,1.07462995]
[1721721587661,0.16428675,66674.0,66673.0,1.06062995]
[1721721589039,0.16428675,66674.0,66673.0,1.07462995]
[1721721589241,0.16427136,66674.0,66673.0,1.07462995]
[1721721589623,0.16426484,66674.0,66673.0,1.07462995]
[1721721590471,0.07432942,66674.0,66673.0,1.07462995]
[1721721590775,0.07432942,66674.0,66673.0,1.04662995]
[1721721590974,0.07432942,66674.0,66673.0,1.06062995]
[1721721591177,0.07432942,66674.0,66673.0,1.07462995]
[1721721591381,0.07432942,66674.0,66673.0,1.36060095]
[1721721591604,0.07432942,66674.0,66673.0,1.34660095]
[1721721591960,0.07432942,66674.0,66673.0,1.37460095]
[1721721592182,0.00084,66674.0,66673.0,1.8215346]
[1721721592377,0.06828016,66674.0,66673.0,1.8215346]
[1721721592798,0.06828016,66674.0,66673.0,1.8075346]
[1721721593423,0.06827865,66674.0,66673.0,1.8075346]
[1721721593834,0.06827865,66674.0,66673.0,1.9305346]
[1721721593835,0.00084,66674.0,66673.0,1.9305346]
[1721721594028,0.00084,66674.0,66673.0,2.02400932]
[1721721594206,0.00084,66674.0,66673.0,2.01000932]
[1721721594414,0.00084,66674.0,66673.0,2.30998032]
[1721721594616,0.00084,66674.0,66673.0,2.44738032]
[1721721595021,0.00084,66674.0,66673.0,2.46138032]
[1721721595428,0.00084,66685.0,66684.0,1.591449]
[1721721595647,0.00084,66685.0,66684.0,1.80452222]
[1721721595850,0.00084,66685.0,66684.0,1.89503031]
[1721721596062,0.00084,66685.0,66684.0,1.89624911]
[1721721596447,0.00084,66685.0,66684.0,1.80197528]
[1721721596650,0.00084,66685.0,66684.0,1.84881659]
[1721721597109,0.00084,66685.0,66684.0,1.78481659]
[1721721597959,0.00084,66685.0,66684.0,1.88481659]
[1721721598161,0.00084,66685.0,66684.0,1.78481659]
[1721721598363,0.00084,66685.0,66684.0,1.79881659]
[1721721598669,0.00084,66685.0,66684.0,1.89881659]
[1721721598863,0.00084,66685.0,66684.0,1.88481659]
[1721721599289,0.00084,66685.0,66684.0,1.79881659]
[1721721599498,0.00084,66685.0,66684.0,1.81281659]
[1721721599934,0.00084,66685.0,66684.0,1.96281659]
[1721721600152,0.00084,66685.0,66684.0,1.94881659]
[1721721600356,0.00084,66685.0,66684.0,2.04305491]
[1721721600567,0.00084,66685.0,66684.0,2.44297691]
[1721721600762,0.00084,66685.0,66684.0,2.14305491]
[1721721601102,0.00084,66685.0,66684.0,2.13781853]
[1721721601225,0.00084,66685.0,66684.0,2.15181853]
[1721721601408,0.00084,66685.0,66684.0,2.13781853]
[1721721601620,0.00084,66685.0,66684.0,2.15181853]
[1721721602078,0.00084,66685.0,66684.0,2.04358021]
[1721721602285,0.00084,66685.0,66684.0,2.13805013]
[1721721602492,0.00084,66685.0,66684.0,2.07158021]
[1721721602695,0.00084,66685.0,66684.0,2.16604238]
[1721721603297,0.00084,66685.0,66684.0,2.16606207]
[1721721603610,0.00084,66685.0,66684.0,2.06606207]
[1721721603785,0.00084,66685.0,66684.0,2.07158021]
[1721721604840,0.00084,66685.0,66684.0,2.02158021]
[1721721605272,0.00084,66685.0,66684.0,1.97158021]
[1721721605475,0.00084,66685.0,66684.0,2.02158021]
[1721721605714,0.00084,66685.0,66684.0,1.97158021]
[1721721606133,0.00084,66685.0,66684.0,0.83441421]
[1721721606343,0.07967145,66690.0,66689.0,0.149949]
[1721721606541,0.07348942,66693.0,66689.0,0.149949]
[1721721606542,0.07348942,66693.0,66690.0,0.149947]
[1721721606741,0.07348942,66693.0,66690.0,0.59686691]
[1721721606943,0.07348942,66693.0,66690.0,1.19665691]
[1721721607145,0.00320692,66691.0,66690.0,0.89676191]
[1721721607354,0.00320692,66691.0,66690.0,1.19665691]
[1721721607501,0.00320692,66691.0,66690.0,1.3997326]
[1721721607867,0.00320692,66691.0,66690.0,0.96336191]
[1721721608726,0.00320692,66691.0,66690.0,0.97736191]
[1721721608932,0.00320692,66691.0,66690.0,0.44691991]
[1721721609132,0.00320692,66691.0,66690.0,0.46091991]
[1721721609435,0.00320692,66691.0,66690.0,0.47491991]
[1721721609585,0.00320692,66691.0,66690.0,0.5393973]
[1721721610016,0.00320692,66691.0,66690.0,0.5343973]
[1721721610330,0.00120692,66691.0,66690.0,0.6843443]
[1721721610532,0.00120692,66691.0,66690.0,0.5343973]
[1721721610770,0.59454192,66691.0,66690.0,0.2999]
[1721721610977,0.89443192,66691.0,66690.0,0.2999]
[1721721611200,0.89443192,66691.0,66690.0,0.3139]
[1721721611201,1.28172192,66691.0,66690.0,0.3139]
[1721721611389,1.28172192,66691.0,66690.0,0.2999]
[1721721611601,1.34890144,66691.0,66690.0,0.2999]
[1721721611800,1.48549177,66691.0,66690.0,0.3139]
[1721721612339,1.3735259,66691.0,66690.0,0.3139]
[1721721613012,1.3735259,66691.0,66690.0,0.2999]
[1721721613933,1.28172192,66691.0,66690.0,0.2999]
[1721721614142,1.37386545,66691.0,66690.0,0.2999]
[1721721614313,1.28646545,66691.0,66690.0,0.2999]
[1721721614788,2.08033801,66691.0,66690.0,0.2999]
[1721721614999,2.59740038,66691.0,66690.0,0.2999]
[1721721615203,2.59740038,66691.0,66690.0,0.12012244]
[1721721615586,2.72248292,66691.0,66690.0,0.12012244]
[1721721615762,2.72248292,66691.0,66690.0,0.14512244]
[1721721615763,2.29751038,66691.0,66690.0,0.14512244]
[1721721615942,2.29751038,66691.0,66690.0,0.13412244]
[1721721616129,2.29751038,66691.0,66690.0,0.12012244]
[1721721616345,2.87924048,66691.0,66690.0,0.06459125]
[1721721616541,2.72802283,66691.0,66690.0,0.06359125]
[1721721616742,1.499626,66685.0,66684.0,0.00310837]
[1721721616984,2.43523325,66685.0,66684.0,0.00310837]
[1721721617402,2.79021799,66685.0,66684.0,0.00310837]
[1721721617610,1.099867,66675.0,66674.0,0.000924]
[1721721617811,1.76869492,66675.0,66674.0,0.000924]
[1721721618012,2.06865692,66675.0,66674.0,0.000924]
[1721721619265,2.11865692,66675.0,66674.0,0.000924]
[1721721619845,2.02262503,66675.0,66674.0,0.007924]
[1721721620047,2.06951259,66675.0,66674.0,0.007924]
[1721721621140,2.46947459,66675.0,66674.0,0.007924]
[1721721621343,2.62767459,66675.0,66674.0,0.007924]
[1721721621740,2.77888361,66675.0,66674.0,0.007924]
[1721721621960,2.75524014,66675.0,66674.0,0.007924]
[1721721622125,2.75524014,66675.0,66674.0,0.000924]
[1721721622326,2.63367459,66675.0,66674.0,0.002924]
[1721721622554,1.958238,66665.0,66664.0,0.000924]
[1721721622730,2.73683489,66665.0,66664.0,0.000924]
[1721721623341,2.87113786,66665.0,66664.0,0.000924]
[1721721624300,2.73683489,66665.0,66664.0,0.000924]
[1721721625155,1.33481156,66665.0,66664.0,0.001924]
[1721721625353,1.29501933,66665.0,66664.0,0.000924]
[1721721625687,1.38788665,66665.0,66664.0,0.001924]
[1721721626012,1.43261571,66665.0,66664.0,0.001924]
[1721721626213,1.38588665,66665.0,66664.0,0.001924]
[1721721626431,1.38788665,66665.0,66664.0,0.001924]
[1721721627040,1.38588665,66665.0,66664.0,0.001924]
[1721721627466,1.45937607,66665.0,66664.0,0.001924]
[1721721628317,1.60639598,66665.0,66664.0,0.001924]
[1721721628518,1.60839598,66665.0,66664.0,0.001924]
[1721721628767,1.65839598,66665.0,66664.0,0.001924]
[1721721628972,1.90840298,66665.0,66664.0,0.001924]
[1721721629133,1.60839598,66665.0,66664.0,0.001924]
[1721721630326,1.23651342,66665.0,66664.0,0.001924]
[1721721631588,1.23451342,66665.0,66664.0,0.001924]
[1721721631993,1.22351342,66665.0,66664.0,0.006924]
[1721721632417,1.22551342,66665.0,66664.0,0.006924]
[1721721633105,1.34806476,66665.0,66664.0,0.006924]
[1721721633310,1.04805776,66665.0,66664.0,0.006924]
[1721721633536,0.002,66665.0,66664.0,0.006924]
[1721721633738,0.002,66665.0,66664.0,0.148124]
[1721721634028,0.002,66665.0,66664.0,0.29813]
[1721721634194,0.002,66665.0,66664.0,0.148124]
[1721721634807,0.002,66665.0,66664.0,0.142124]
[1721721635007,0.22348742,66668.0,66664.0,0.142124]
[1721721635008,0.07348942,66668.0,66664.0,0.142124]
[1721721635341,0.299949,66678.0,66671.0,0.0619]
[1721721635342,0.07348942,66675.0,66671.0,0.0619]
[1721721635507,0.07348942,66677.0,66675.0,0.0761]
[1721721635910,0.26080806,66677.0,66676.0,0.002794]
[1721721636110,0.26080806,66677.0,66675.0,0.0761]
[1721721636111,0.449937,66676.0,66675.0,0.0761]
[1721721636310,0.149987,66673.0,66671.0,0.0619]
[1721721636489,0.149987,66673.0,66672.0,0.002794]
[1721721636690,0.07348942,66677.0,66672.0,0.002794]
[1721721636895,0.299959,66676.0,66672.0,0.002794]
[1721721637105,0.149979,66676.0,66672.0,0.002794]
[1721721637305,0.149982,66675.0,66672.0,0.002794]
[1721721637581,0.07348942,66677.0,66672.0,0.002794]
[1721721637582,0.149983,66674.0,66672.0,0.002794]
[1721721638099,0.37340642,66685.0,66673.0,0.14701991]
[1721721638446,0.07348942,66678.0,66677.0,0.0623]
[1721721638622,0.07348942,66678.0,66677.0,0.212276]
[1721721638786,0.07348942,66678.0,66677.0,0.0623]
[1721721638986,0.07348942,66678.0,66677.0,0.212276]
[1721721639213,0.07348942,66678.0,66677.0,0.512229]
[1721721639434,0.07348942,66678.0,66677.0,0.212276]
[1721721640069,0.07448942,66678.0,66677.0,0.233276]
[1721721640652,0.001,66678.0,66677.0,0.68024891]
[1721721640924,0.001,66678.0,66677.0,0.75764891]
[1721721641332,0.001,66678.0,66677.0,1.05760191]
[1721721641508,0.001,66678.0,66677.0,1.04360191]
[1721721641661,0.07348942,66685.0,66677.0,1.04360191]
[1721721641662,0.07348942,66685.0,66684.0,0.513083]
[1721721641864,0.07348942,66685.0,66684.0,0.66010291]
[1721721642086,0.07348942,66685.0,66684.0,0.96002491]
[1721721642297,0.00120692,66691.0,66690.0,0.149947]
[1721721642494,0.00120692,66691.0,66687.0,0.299906]
[1721721642495,0.00120692,66691.0,66688.0,0.149951]
[1721721642699,0.00120692,66691.0,66689.0,0.002794]
[1721721643046,0.00120692,66691.0,66690.0,0.73746191]
[1721721643160,0.00120692,66691.0,66690.0,1.03735691]
[1721721643369,0.00120692,66691.0,66690.0,0.73746191]
[1721721644883,0.00120692,66691.0,66690.0,0.75146191]
[1721721645090,0.00220692,66691.0,66690.0,0.75146191]
[1721721645232,0.00120692,66691.0,66690.0,0.75146191]
[1721721645433,0.00120692,66691.0,66690.0,0.73746191]
[1721721645655,0.00120692,66691.0,66690.0,0.75146191]
[1721721646374,0.00120692,66691.0,66690.0,0.74846191]
[1721721646375,0.00220692,66691.0,66690.0,0.74846191]
[1721721646575,0.00220692,66691.0,66690.0,0.73746191]
[1721721646776,0.00220692,66691.0,66690.0,0.43756691]
[1721721647137,0.00220692,66691.0,66690.0,0.0632]
[1721721647337,0.00220692,66691.0,66690.0,0.213147]
[1721721647768,0.00220692,66691.0,66690.0,0.227147]
[1721721647977,0.00320692,66691.0,66690.0,0.68806191]
[1721721648181,0.00220692,66691.0,66690.0,0.37416691]
[1721721648604,0.00320692,66691.0,66690.0,0.39916691]
[1721721648798,0.00120692,66691.0,66690.0,0.37416691]
[1721721648999,0.00120692,66691.0,66690.0,0.36016691]
[1721721649442,0.00120692,66691.0,66690.0,0.37416691]
[1721721649961,0.15115192,66691.0,66690.0,0.0772]
[1721721650161,0.47350605,66691.0,66690.0,0.014]
[1721721650364,0.45104192,66691.0,66690.0,0.014]
[1721721650992,0.00120692,66691.0,66685.0,0.0627]
[1721721651208,0.07348942,66686.0,66685.0,0.212658]
[1721721652158,0.07348942,66686.0,66685.0,0.512575]
[1721721652379,0.00120692,66691.0,66686.0,0.299909]
[1721721652380,0.00220692,66691.0,66686.0,0.299909]
[1721721652559,0.15215292,66691.0,66687.0,0.29976591]
[1721721653216,0.15215292,66691.0,66687.0,0.14981391]
[1721721653403,0.00220692,66691.0,66690.0,0.014]
[1721721654371,0.00120692,66691.0,66690.0,0.014]
[1721721654576,0.15115192,66691.0,66690.0,0.014]
[1721721655025,0.15215192,66691.0,66690.0,0.014]
[1721721655181,0.15215192,66691.0,66687.0,0.014]
[1721721655182,0.30209692,66691.0,66687.0,0.014]
[1721721655402,0.299895,66690.0,66687.0,0.014]
[1721721655609,0.149949,66689.0,66688.0,0.002794]
[1721721655783,0.149949,66689.0,66687.0,0.014]
[1721721656001,0.299895,66690.0,66687.0,0.014]
[1721721656002,0.149952,66688.0,66687.0,0.014]
[1721721656389,0.149954,66687.0,66685.0,0.0627]
[1721721656600,0.07348942,66686.0,66685.0,0.0627]
[1721721657022,0.22344542,66686.0,66685.0,0.0627]
[1721721657222,0.07348942,66686.0,66685.0,0.0627]
[1721721657978,0.07348942,66686.0,66685.0,0.0767]
[1721721658364,0.07448942,66686.0,66685.0,0.0767]
[1721721660580,0.52435842,66686.0,66685.0,0.0767]
[1721721660786,0.52435842,66686.0,66685.0,0.014]
[1721721660787,0.82427142,66686.0,66685.0,0.014]
[1721721661219,1.12418442,66686.0,66685.0,0.028]
[1721721661535,1.12418442,66686.0,66685.0,0.46637791]
[1721721661536,0.001,66686.0,66685.0,0.46637791]
[1721721661946,0.14995,66689.0,66685.0,0.45237791]
[1721721662140,0.149948,66690.0,66686.0,0.14701991]
[1721721662422,0.00120692,66691.0,66687.0,0.152747]
[1721721662615,0.00120692,66691.0,66687.0,0.002794]
[1721721662830,0.00120692,66691.0,66690.0,0.002794]
[1721721663179,0.00120692,66691.0,66688.0,0.002794]
[1721721663377,0.00035154,66691.0,66690.0,0.149947]